[Event "44th Chess Olympiad Open 2022"]
[Site "Chennai"]
[Date "2022.08.03"]
[Round "6.7"]
[White "Lodici, Lorenzo"]
[Black "Svane, Rasmus"]
[Result "1/2-1/2"]
[WhiteElo "2553"]
[BlackElo "2649"]
[Annotator "TA"]
[PlyCount "150"]
[EventDate "2022.??.??"]
[TimeControl "60"]

{[%evp 12,150,11,0,0,-10,-7,-2,0,-6,-2,3,27,0,0,0,0,3,9,0,4,0,0,0,4,0,6,5,4,6,
6,0,0,0,0,0,0,0,0,0,0,0,0,0,0,0,0,0,0,0,229,229,12833,12834,12834,12835,12833,
0,12837,12838,12837,12837,12837,12838,12841,12842,12842,12843,12847,12847,
12849,12849,12850,27999,27999,27998,27999,0,0,0,0,0,0,0,0,0,0,0,0,0,0,0,0,0,0,
0,0,0,0,0,0,0,0,0,0,0,0,0,0,0,0,0,0,0,0,0,0,0,0,0,0,0,0,0,0,0,0,0,0,0,0,0,0,0,
0,0,0,0,0,0,0]} 1. d4 {[%emt 0:00:04]} Nf6 {[%emt 0:00:10]} 2. c4 {[%emt 0:00:
00]} e6 {[%emt 0:00:11]} 3. Nf3 {[%emt 0:00:17]} d5 {[%emt 0:00:15]} 4. Nc3 {
[%emt 0:00:07]} Be7 {[%emt 0:00:38]} 5. Bf4 {[%emt 0:03:15]} O-O {[%emt 0:00:
00]} 6. e3 {[%emt 0:00:02]} Nbd7 {[%emt 0:00:11][%cal Yb8d7,Yd7c5,Yc5e6]} 7. h3
{[%emt 0:21:44]} c5 {[%emt 0:03:45] D37: Queen's Gambit Declined: 5 Bf4.} 8.
dxc5 {[%emt 0:01:13]} Nxc5 {[%emt 0:05:02]} 9. cxd5 {[%emt 0:00:48]} Nxd5 {
[%emt 0:01:39]} 10. Nxd5 {[%emt 0:00:04]} exd5 {[%emt 0:01:46]} 11. Be5 {
[%emt 0:02:22]} Ne6 {[%emt 0:29:33][%cal Yd5d4] [#]} 12. Bc3 $146 {[%emt 0:00:
00] Against d4} ({Predecessor:} 12. Be2 Bb4+ 13. Kf1 Be7 14. Qd2 Nc5 15. Nd4
Ne4 16. Qe1 Re8 17. Nf3 a5 18. g3 {0-1 (57) Steingrimsson,H (2396)-Boensch,U 
(2545) Germany 2003}) 12... Bf6 {[%emt 0:01:36]} 13. Qd2 {[%emt 0:04:59]} Bxc3
{[%emt 0:03:11]} 14. Qxc3 {[%emt 0:00:38]} d4 {[%emt 0:03:50]} 15. Nxd4 {
[%emt 0:00:19]} Nxd4 {[%emt 0:00:29]} 16. Qxd4 {[%emt 0:00:05]} (16. Rd1 {
seems wilder.} Be6 17. Rxd4 Qg5 18. h4) 16... Qxd4 {[%emt 0:11:49]} 17. exd4 {
[%emt 0:00:27]} Be6 {[%emt 0:10:51]} 18. b3 {[%emt 0:05:46]} Rfd8 {[%emt 0:00:
00]} 19. O-O-O {[%emt 0:12:43]} Rd6 {[%emt 0:00:06]} 20. Be2 {[%emt 0:01:04]}
Rad8 {[%emt 0:03:39]} 21. Bf3 {[%emt 0:00:50]} b6 {[%emt 0:00:26]} 22. d5 {
[%emt 0:01:58]} Bxd5 {[%emt 0:00:40]} 23. Bxd5 {[%emt 0:00:10]} Rxd5 {[%emt 0:
00:00]} 24. Rxd5 {[%emt 0:00:06]} Rxd5 {[%emt 0:00:04]} 25. Rd1 {[%emt 0:00:28]
} Rxd1+ {[%emt 0:03:45]} 26. Kxd1 $11 {[%emt 0:00:02] Endgame KP-KP} Kf8 {
[%emt 0:00:12]} 27. Kd2 {[%emt 0:00:14]} Ke7 {[%emt 0:00:06]} 28. Kd3 {[%emt 0:
00:17]} Kd6 {[%emt 0:00:07]} 29. Kd4 {[%emt 0:01:16]} f6 {[%emt 0:00:00]} 30.
h4 {[%emt 0:03:18]} f5 $2 {[%emt 0:02:50]} (30... g5 $11) 31. h5 $1 $18 {
[%emt 0:07:19]} g6 $2 {[%emt 0:00:07]} (31... Ke6 32. b4 Kd6) 32. hxg6 {
[%emt 0:02:40]} hxg6 {[%emt 0:00:04]} 33. f4 $1 {[%emt 0:00:03]} Ke6 {[%emt 0:
00:00]} 34. Kc4 $2 {[%emt 0:01:25]} ({Better is} 34. b4 $18 Kd6 35. a4) 34...
a6 $2 {[%emt 0:00:18]} (34... g5 $11) 35. b4 {[%emt 0:01:56]} Kd6 {[%emt 0:00:
15]} 36. a4 {[%emt 0:01:24]} Kc6 {[%emt 0:00:14]} 37. a5 {[%emt 0:00:00]} bxa5
{[%emt 0:01:32]} 38. bxa5 {[%emt 0:00:01] K3P-K3P} Kd6 {[%emt 0:00:00]} 39. Kd4
$1 {[%emt 0:00:00]} Kc6 {[%emt 0:00:18] [#]} 40. Ke5 $1 {[%emt 0:00:13]} Kb5 {
[%emt 0:00:18]} 41. Kf6 {[%emt 0:30:05]} Kxa5 {[%emt 0:00:00]} 42. Kxg6 {
[%emt 0:00:04]} Kb4 {[%emt 0:02:46]} 43. Kxf5 {[%emt 0:00:08] KPP-KP} a5 {
[%emt 0:00:04] [#]} 44. Kg6 $2 {[%emt 0:00:00]} ({Weaker is} 44. g4 a4 45. g5
a3 $11) (44. Ke4 $1 a4 45. f5) 44... a4 $11 {[%emt 0:00:00] ...a3 is the
strong threat. The position is equal.} 45. f5 {[%emt 0:00:00] Black must now
prevent f6.} a3 {[%emt 0:00:00]} 46. f6 {[%emt 0:00:00]} a2 {[%emt 0:00:00]}
47. f7 {[%emt 0:00:00]} a1=Q {[%emt 0:00:00]} 48. f8=Q+ {[%emt 0:00:00] KQ-KQ}
Kc4 {[%emt 0:00:00]} 49. Qc8+ {[%emt 0:00:00]} Kd3 {[%emt 0:00:00]} 50. g4 {
[%emt 0:00:00]} Qd4 {[%emt 0:00:00]} 51. Qe6 {[%emt 0:00:00]} Kc2 {[%emt 0:00:
00]} 52. g5 {[%emt 0:00:00]} Kb1 {[%emt 0:00:00]} 53. Qf5+ {[%emt 0:00:00]} Ka2
{[%emt 0:00:00]} 54. Kh7 {[%emt 0:00:00]} Qa7+ {[%emt 0:00:00]} 55. Kg8 {
[%emt 0:00:00] Threatens to win with Qf7+.} Qb8+ {[%emt 0:00:00]} 56. Kg7 {
[%emt 0:00:00]} Qb2+ {[%emt 0:00:00]} 57. Qf6 {[%emt 0:00:00] Hoping for Qxb2+.
} Qc2 {[%emt 0:00:00]} 58. g6 {[%emt 0:00:00]} Kb1 {[%emt 0:03:12]} 59. Qb6+ {
[%emt 0:00:00]} Ka2 {[%emt 0:00:00]} 60. Kf6 {[%emt 0:00:00]} ({Less strong is
} 60. Qe6+ Kb2 61. Kg8 Qg2 62. Qb6+ Kc3 63. Qa5+ Kb3 $18) 60... Qc3+ {[%emt 0:
00:00]} 61. Kf7 {[%emt 0:00:00]} Qf3+ {[%emt 0:00:00]} 62. Ke7 {[%emt 0:00:00]}
Qa3+ {[%emt 0:00:00]} 63. Kf7 {[%emt 0:00:00]} Qf3+ {[%emt 0:00:00]} 64. Qf6 {
[%emt 0:00:00]} Qb7+ {[%emt 0:00:00]} 65. Kg8 {[%emt 0:00:00] Strongly
threatening Qf7+.} Qb3+ {[%emt 0:00:00]} 66. Kg7 {[%emt 0:04:11]} Qd3 {[%emt 0:
00:00]} 67. Qe6+ {[%emt 0:03:46]} Kb1 {[%emt 0:00:05]} 68. Kh7 {[%emt 0:00:03]}
Kb2 {[%emt 0:01:07]} 69. Kg8 {[%emt 0:01:38]} Qd8+ {[%emt 0:00:23]} 70. Kf7 {
[%emt 0:00:03]} Qc7+ {[%emt 0:00:09]} 71. Qe7 {[%emt 0:00:05]} Qc4+ {[%emt 0:
00:00]} 72. Kf6 {[%emt 0:00:23]} Qh4+ {[%emt 0:00:28]} 73. Kf7 {[%emt 0:00:08]}
Qc4+ {[%emt 0:00:05]} 74. Kf8 {[%emt 0:00:22]} Qc8+ {[%emt 0:00:35]} 75. Kg7 {
[%emt 0:00:02]} Qc4 {[%emt 0:01:07] Black escapes into a draw. Weighted Error
Value: White=0.26 (precise) /Black=0.16 (very precise)} 1/2-1/2

[Event "44th Chess Olympiad Open 2022"]
[Site "Chennai"]
[Date "2022.08.03"]
[Round "6.7"]
[White "Brunello, Sabino"]
[Black "Kollars, Dmitrij"]
[Result "1/2-1/2"]
[WhiteElo "2520"]
[BlackElo "2648"]
[Annotator "TA"]
[PlyCount "133"]
[EventDate "2022.??.??"]
[TimeControl "60"]

{[%evp 17,133,39,45,0,0,0,36,27,18,0,0,0,3,9,14,0,0,0,0,-20,19,14,18,20,18,19,
23,22,30,27,36,27,35,8,23,0,41,52,55,54,57,62,79,76,389,409,384,382,323,148,
148,148,148,148,148,148,151,131,129,129,132,0,129,0,125,95,95,95,95,8,8,8,8,8,
8,8,8,8,8,8,8,8,8,8,8,8,8,8,8,0,147,147,147,147,147,147,147,147,147,147,147,
147,147,147,147,147,147,147,147,147,147,147,147,147,147,147,147,147]} 1. e4 {
[%emt 0:00:02]} e5 {[%emt 0:00:20]} 2. Nf3 {[%emt 0:00:07]} Nc6 {[%emt 0:00:06]
} 3. Bb5 {[%emt 0:00:03][%cal Yf1b5,Yb5a4,Ya4b3]} a6 {[%emt 0:00:34]} 4. Ba4 {
[%emt 0:00:04]} Nf6 {[%emt 0:00:11]} 5. O-O {[%emt 0:00:07]} b5 {[%emt 0:01:30]
} 6. Bb3 {[%emt 0:00:07]} Bc5 {[%emt 0:00:08]} 7. a4 {[%emt 0:00:00]} Rb8 {
[%emt 0:00:39]} 8. c3 {[%emt 0:01:42]} d6 {[%emt 0:00:20]} 9. d4 {[%emt 0:00:
09]} Bb6 {[%emt 0:00:06]} 10. a5 {[%emt 0:00:22] C78: Ruy Lopez: Archangelsk
and Möller Defences.} Ba7 {[%emt 0:00:10]} ({Resist} 10... Nxa5 11. Rxa5 Bxa5
12. dxe5 $14) (10... Bxa5 $2 11. dxe5 (11. d5 Ne7 $18) 11... dxe5 12. Qxd8+
Kxd8 13. Bd5 (13. Bxf7 Bb6 $16) 13... Nxd5 14. exd5 $18) 11. h3 {[%emt 0:01:55]
} Bb7 {[%emt 0:00:42]} 12. Be3 {[%emt 0:02:18] White is slightly better.} Nxe4
{[%emt 0:00:51]} 13. Re1 {[%emt 0:00:33] d5 is the strong threat.} (13. d5 {
is interesting.} Bxe3 14. dxc6 Nxf2 15. Qe2) 13... exd4 {[%emt 0:00:00]} 14.
cxd4 {[%emt 0:01:06]} Ne7 {[%emt 0:04:20]} 15. Nc3 {[%emt 0:06:17] [#]
Strongly threatening Ng5.} d5 {[%emt 0:04:55]} 16. Nxe4 {[%emt 0:01:42]} dxe4 {
[%emt 0:00:05]} 17. Ng5 {[%emt 0:00:04]} Bd5 {[%emt 0:00:50]} 18. Nxe4 {
[%emt 0:00:27]} O-O {[%emt 0:07:46] [#]} (18... Bxe4 {is more complex.} 19. Qg4
Bd5 20. Bg5 f6) 19. Nc5 $146 {[%emt 0:13:58]} (19. Bc2 {with more
complications.} Nf5 20. Nc5 Nxe3 21. Rxe3 Qd6 22. b4) ({Predecessor:} 19. Bg5
f6 20. Bf4 Rf7 21. Rc1 Rc8 22. Bd6 cxd6 23. Rxc8 Qxc8 24. Bxd5 Nxd5 25. Nxd6 {
½-½ (59) Ragger,M (2668)-Andersen,M (2575) Terme Catez 2021}) 19... Bxc5 {
[%emt 0:12:56]} 20. dxc5 {[%emt 0:00:36]} Bxb3 {[%emt 0:01:17]} 21. Qxb3 {
[%emt 0:00:01]} Qd5 {[%emt 0:00:20]} 22. Qc2 {[%emt 0:05:36]} Qc6 {[%emt 0:00:
00]} 23. Rad1 {[%emt 0:07:24]} Nd5 {[%emt 0:02:41]} 24. Bg5 {[%emt 0:25:16]
[%cal Ye3g5,Yg5h4,Yh4g3] Threatens to win with Qf5.} f6 {[%emt 0:00:00]} 25.
Bh4 {[%emt 0:00:22]} Rbe8 {[%emt 0:11:50]} 26. Re4 {[%emt 0:12:30]} g5 {
[%emt 0:15:19]} 27. Bg3 {[%emt 0:02:40] Black must now prevent Red4.} Nf4 $1 {
[%emt 0:00:25]} 28. f3 $36 {[%emt 0:07:38] White is more active.} Rxe4 {
[%emt 0:00:15]} 29. fxe4 {[%emt 0:01:27]} Ne6 {[%emt 0:00:45]} 30. b4 {[%emt 0:
00:33]} Rd8 $2 {[%emt 0:01:20]} (30... Rf7 $16 {is more resistant.}) 31. Rxd8+
$18 {[%emt 0:05:31]} Nxd8 {[%emt 0:00:01] Endgame KQB-KQN} 32. Qd3 {[%emt 0:00:
05] Against Qd7} Qe8 {[%emt 0:02:42] [#]} 33. Bxc7 {[%emt 0:00:11]} (33. Qd5+
$1 $18 {and the rest is easy.} Kf8 34. Qa8) 33... Nc6 $16 {[%emt 0:00:04]} 34.
Bg3 {[%emt 0:00:04] And now Qd5+ would win. White is more active.} Qe6 {
[%emt 0:02:02]} 35. Be1 {[%emt 0:01:31]} Kf7 {[%emt 0:01:08]} 36. Bc3 {[%emt 0:
00:24]} h5 {[%emt 0:00:51]} 37. Kf2 {[%emt 0:00:00]} Ne7 {[%emt 0:00:16]} 38.
Qf3 {[%emt 0:01:10]} Kg6 {[%emt 0:03:19]} 39. Qd3 {[%emt 0:00:26]} Kf7 $1 {
[%emt 0:00:47]} 40. Qf3 {[%emt 0:00:18]} Kg6 {[%emt 0:00:35]} 41. g4 {[%emt 0:
04:32]} hxg4 {[%emt 0:01:09]} 42. hxg4 {[%emt 0:00:14]} Kf7 {[%emt 0:11:58]}
43. e5 {[%emt 0:10:21]} ({Better is} 43. Kg3 $16) 43... f5 $11 {[%emt 0:03:12]}
44. gxf5 {[%emt 0:01:02]} Qxf5 {[%emt 0:00:00]} 45. Qxf5+ {[%emt 0:04:50]} Nxf5
{[%emt 0:00:03] KB-KN} 46. c6 {[%emt 0:00:00] Hoping for c7.} Ke6 {[%emt 0:01:
41]} 47. Kf3 {[%emt 0:00:48] With the idea c7.} Ne7 {[%emt 0:00:41]} 48. c7 {
[%emt 0:00:57]} Kd7 {[%emt 0:00:07]} 49. Bd4 {[%emt 0:07:31]} Kxc7 {[%emt 0:01:
29]} 50. Bc5 $1 {[%emt 0:00:11]} Kd7 {[%emt 0:05:05]} 51. Kg4 {[%emt 0:00:10]
Intending Bxe7 and mate.} Nc6 {[%emt 0:00:00] aiming for ...Ke6.} 52. Kf5 {
[%emt 0:00:15] Threatening mate with e6+.} Nd8 {[%emt 0:00:22] Prevents e6+.} (
52... Ke8 {looks sharper.} 53. e6 Nd8 54. e7 Nc6) 53. Kxg5 {[%emt 0:03:48]}
Ne6+ {[%emt 0:00:47]} (53... Ke6 $1 $11 {keeps the balance.} 54. Kf4 Nc6) 54.
Kf6 $16 {[%emt 0:00:15] White is clearly better.} Nc7 {[%emt 0:00:26]} 55. Kf7
{[%emt 0:01:09]} Ne6 {[%emt 0:00:05]} 56. Be3 {[%emt 0:00:22]} Nd8+ {[%emt 0:
00:21]} 57. Kf6 {[%emt 0:00:05]} Ne6 {[%emt 0:00:03]} 58. Kf5 {[%emt 0:00:15]}
Nc7 {[%emt 0:00:32]} 59. Bc5 {[%emt 0:00:00]} Ne6 {[%emt 0:00:07]} 60. Bd6 {
[%emt 0:00:05]} Ng7+ {[%emt 0:00:36]} 61. Ke4 {[%emt 0:00:40]} Kc6 {[%emt 0:00:
06]} 62. Bc5 {[%emt 0:00:13]} Ne6 {[%emt 0:00:05]} 63. Bb6 {[%emt 0:00:23]} Ng7
{[%emt 0:00:32]} 64. Be3 {[%emt 0:00:00]} Ne6 {[%emt 0:00:07]} 65. Kf5 {
[%emt 0:00:20]} Kd7 {[%emt 0:00:07]} 66. Kf6 {[%emt 0:00:36]} Nd8 {[%emt 0:00:
31]} 67. Bd2 {[%emt 0:01:07] Weighted Error Value: White=0.19 (very precise) /
Black=0.19 (very precise)} 1/2-1/2

[Event "44th Chess Olympiad Open 2022"]
[Site "Chennai"]
[Date "2022.08.03"]
[Round "6.8"]
[White "Howell, David W L"]
[Black "Blohberger, Felix"]
[Result "1-0"]
[WhiteElo "2650"]
[BlackElo "2492"]
[Annotator "TA"]
[PlyCount "83"]
[EventDate "2022.??.??"]
[TimeControl "60"]

{[%evp 10,83,27,22,27,12,26,4,16,0,0,0,0,-14,-25,-14,-25,-22,-10,-30,0,2,28,22,
32,24,28,33,37,29,61,79,85,70,74,81,121,75,136,108,147,149,130,174,183,129,243,
235,206,245,308,302,290,290,285,326,323,237,226,237,320,318,294,302,309,307,
422,422,624,606,695,673,851,848,698,588]} 1. e4 {[%emt 0:00:29]} e5 {[%emt 0:
00:00]} 2. Nf3 {[%emt 0:00:23]} Nc6 {[%emt 0:00:08]} 3. Bc4 {[%emt 0:00:37]}
Nf6 {[%emt 0:00:07]} 4. d3 {[%emt 0:00:58]} Bc5 {[%emt 0:00:09]} 5. O-O {
[%emt 0:00:55]} d6 {[%emt 0:00:33]} 6. c3 {[%emt 0:00:47]} a5 {[%emt 0:00:39]
C54: Giuoco Piano: 4 c3 Nf6, main lines with 5 d4 and 5 d3.} 7. Re1 {[%emt 0:
00:00]} Ba7 {[%emt 0:01:46]} 8. Bb3 $5 {[%emt 0:15:06] An interesting side
line.} h6 {[%emt 0:02:42] The position is equal.} 9. Na3 {[%emt 0:02:08]} O-O {
[%emt 0:00:23]} 10. h3 {[%emt 0:05:33] [#]} Re8 $146 {[%emt 0:01:15]} ({
Predecessor:} 10... Be6 11. Ba4 Ne7 12. d4 Ng6 13. Be3 c6 14. Bc2 b5 15. Bd3 b4
16. Nc2 bxc3 17. bxc3 {½-½ (38) Ganguly,S (2608)-Haimovich,T (2372) Biel 2022
}) 11. Nc4 {[%emt 0:04:37]} b5 {[%emt 0:16:01]} 12. Ne3 {[%emt 0:00:30]} a4 {
[%emt 0:04:10]} 13. Bc2 {[%emt 0:00:06]} Ne7 {[%emt 0:02:13]} 14. Nh4 {[%emt 0:
00:00]} Bxe3 {[%emt 0:20:29]} 15. Bxe3 {[%emt 0:01:50]} g5 {[%emt 0:02:30]} 16.
Nf3 {[%emt 0:12:14]} Ng6 {[%emt 0:00:21] Prevents h4.} 17. d4 {[%emt 0:01:42]
[%cal Yc3c4]} Qe7 {[%emt 0:08:17]} 18. Nh2 {[%emt 0:06:00]} c5 {[%emt 0:03:43]}
19. Qd2 {[%emt 0:03:56]} (19. Nf1 {with more complications.} Nf4 20. Qd2 N6h5
21. Ng3) 19... Bb7 {[%emt 0:10:46]} 20. f3 {[%emt 0:05:13]} Rad8 {[%emt 0:00:
00]} 21. Qf2 {[%emt 0:01:21][%cal Rd4c5]} Rc8 {[%emt 0:02:14]} 22. Rad1 {
[%emt 0:01:17]} Qc7 {[%emt 0:02:37]} 23. Rd2 {[%emt 0:01:52]} (23. dxc5 $142
dxc5 24. Rd2) 23... Kg7 {[%emt 0:10:16]} (23... cxd4 $142 24. cxd4 d5) 24. Nf1
{[%emt 0:01:20]} Nh5 {[%emt 0:04:13]} 25. Red1 {[%emt 0:00:55] Black must now
prevent dxc5.} cxd4 {[%emt 0:02:13]} 26. cxd4 {[%emt 0:00:02]} Ngf4 {[%emt 0:
00:00]} 27. Bb1 {[%emt 0:01:09]} (27. dxe5 $18 dxe5 28. Bb6) 27... d5 {[%emt 0:
00:00]} (27... Rcd8 $16) 28. exd5 {[%emt 0:03:57]} Nxd5 {[%emt 0:00:20] [#]}
29. dxe5 $1 {[%emt 0:00:06]} Nxe3 {[%emt 0:01:15]} 30. Nxe3 {[%emt 0:00:09]
[%cal Yf1e3,Ye3f5,Yf5d6]} Qxe5 {[%emt 0:00:43]} 31. Nf5+ {[%emt 0:00:00]} Kf8 {
[%emt 0:00:05]} 32. Nd6 {[%emt 0:00:47]} (32. Nxh6 $6 Rc7 33. Nf5 Nf4 $18)
32... Nf4 {[%emt 0:01:13]} 33. Be4 {[%emt 0:03:38]} ({Less strong is} 33. Nxb7
Ne2+ 34. Rxe2 (34. Kh1 Ng3+ 35. Kg1 Ne2+ 36. Rxe2 Qxe2 $16) 34... Qxe2 $16) ({
But not} 33. Nxe8 Rxe8 34. Qb6 Qe3+ 35. Qxe3 Rxe3 36. Rd8+ (36. Rd7 Bd5 $18)
36... Kg7) (33. Nxc8 Bxc8 34. Kh1 Kg7 $18) 33... Bxe4 {[%emt 0:00:56]} 34. fxe4
{[%emt 0:00:05]} ({Worse is} 34. Nxe4 Rc6 $11) 34... Red8 {[%emt 0:00:43]} 35.
Nxc8 {[%emt 0:00:28]} Rxc8 {[%emt 0:00:04]} 36. Rd8+ {[%emt 0:00:12]} Rxd8 {
[%emt 0:00:07]} 37. Rxd8+ $18 {[%emt 0:00:06] KQR-KQN} Kg7 {[%emt 0:00:11]} 38.
Kh1 {[%emt 0:00:52] White is clearly winning.} a3 {[%emt 0:01:33]} (38... Qxe4
$142 39. Qd4+ Qxd4 40. Rxd4 Ne6) 39. bxa3 {[%emt 0:00:53]} Qa1+ {[%emt 0:00:00]
} 40. Kh2 {[%emt 0:00:07]} Kg6 {[%emt 0:00:36]} 41. g3 {[%emt 0:05:27]} Ne6 {
[%emt 0:03:44]} 42. Rg8+ {[%emt 0:05:00] Weighted Error Value: White=0.11 
(very precise) /Black=0.30} 1-0

[Event "44th Chess Olympiad Open 2022"]
[Site "Chennai"]
[Date "2022.08.03"]
[Round "6.8"]
[White "Dragnev, Valentin"]
[Black "McShane, Luke J"]
[Result "*"]
[WhiteElo "2557"]
[BlackElo "2649"]
[Annotator "TA"]
[PlyCount "71"]
[EventDate "2022.??.??"]
[TimeControl "60"]

{[%evp 12,71,19,0,0,0,0,1,13,15,0,9,23,16,31,27,32,11,34,37,37,36,33,40,29,36,
35,38,33,21,22,22,18,30,22,19,27,21,33,0,0,0,0,0,0,0,0,-2,0,0,0,0,0,0,0,0,0,0,
0,0,0,0]} 1. e4 {[%emt 0:00:10]} e5 {[%emt 0:00:13]} 2. Nf3 {[%emt 0:00:05]}
Nc6 {[%emt 0:00:10]} 3. Bb5 {[%emt 0:00:10]} Nf6 {[%emt 0:00:06]} 4. d3 {
[%emt 0:00:46]} Bc5 {[%emt 0:00:06]} 5. c3 {[%emt 0:00:12]} O-O {[%emt 0:00:08]
} 6. O-O {[%emt 0:00:10]} d6 {[%emt 0:01:22]} 7. h3 {[%emt 0:00:27]} Bb6 {
[%emt 0:03:54] C65: Ruy Lopez: Berlin Defence (3...Nf6), unusual lines and 4
0-0 Bc5.} 8. Re1 {[%emt 0:01:52]} Ne7 {[%emt 0:00:33]} 9. d4 {[%emt 0:00:27]}
Ng6 {[%emt 0:00:32]} 10. Bd3 {[%emt 0:00:34]} c6 {[%emt 0:00:15]} 11. Nbd2 {
[%emt 0:01:14][%cal Yb1d2,Yd2f1,Yf1g3,Yg3f5]} Re8 {[%emt 0:02:49]} 12. Nf1 {
[%emt 0:01:02]} Nh5 {[%emt 0:06:31]} 13. Bc2 {[%emt 0:01:18]} Nhf4 {[%emt 0:02:
29]} 14. Ng3 {[%emt 0:01:30] [#]} Be6 $146 {[%emt 0:13:24]} ({Predecessor:} 
14... exd4 15. cxd4 c5 16. d5 c4 17. a4 Bd7 18. Nf5 Qf6 19. Bd2 h6 20. Bc3 Ne5
21. Nxe5 dxe5 {1-0 (61) Maguire,G (2369)-Balabanov,V (2412) ICCF email 2019})
15. Be3 {[%emt 0:04:50]} Bc7 {[%emt 0:12:56]} 16. Nf5 {[%emt 0:08:11]} d5 {
[%emt 0:13:23]} 17. dxe5 {[%emt 0:22:59]} dxe4 {[%emt 0:00:00]} 18. Bxe4 {
[%emt 0:02:02]} Nxe5 {[%emt 0:05:47]} 19. N3d4 {[%emt 0:08:09]} Bxf5 {[%emt 0:
12:34]} 20. Bxf4 {[%emt 0:06:23]} Bg6 {[%emt 0:06:02]} 21. Bxg6 {[%emt 0:08:30]
} hxg6 {[%emt 0:00:13]} 22. Qb3 {[%emt 0:00:12]} Qf6 {[%emt 0:00:00]} 23. Bxe5
{[%emt 0:11:59]} ({Don't play} 23. Qxb7 Qxf4 24. g3 Qf6 25. Qxc7 c5 26. Qxc5
Nd3 27. Rxe8+ Rxe8 $17) 23... Bxe5 {[%emt 0:00:16]} 24. Nf3 {[%emt 0:00:07]} ({
But not} 24. Qxb7 Reb8 25. Qa6 Rxb2 $11) 24... b6 {[%emt 0:00:00]} 25. Nxe5 {
[%emt 0:05:32]} Rxe5 {[%emt 0:00:09] The position is equal.} 26. Rxe5 {[%emt 0:
00:41]} Qxe5 $14 {[%emt 0:00:02] Endgame KQR-KQR} 27. Qc2 {[%emt 0:02:46]} Re8
{[%emt 0:01:13]} 28. Rd1 {[%emt 0:00:08]} c5 {[%emt 0:01:16]} 29. Qd2 {[%emt 0:
03:10]} g5 {[%emt 0:01:04]} 30. c4 {[%emt 0:00:00]} g6 {[%emt 0:00:55]} 31. b3
{[%emt 0:00:41]} Kg7 {[%emt 0:01:21]} 32. a4 {[%emt 0:02:48]} a5 {[%emt 0:01:
44]} 33. Qd6 {[%emt 0:01:45]} Qe2 {[%emt 0:00:00] [#] And now ...Qc2 would win.
} 34. Qd2 {[%emt 0:00:45] Inhibits Qc2.} Qe5 {[%emt 0:03:47]} 35. Qd6 {[%emt 0:
00:33]} Qe2 {[%emt 0:00:06] ...Qc2 is the strong threat.} 36. Qd2 {[%emt 0:00:
14] Against Qc2. Weighted Error Value: White=0.02 (flawless) /Black=0.02 
(flawless)} *